bitfinex-derivatives/quotes_BTCF0:USTF0_20250609
["timestamp","ask_amount","ask_price","bid_price","bid_amount"]
[1749477190492,1.72039758,107120.0,107110.0,0.26620431]
[1749477190691,1.72079758,107120.0,107110.0,0.26620431]
[1749477191583,1.67196671,107120.0,107110.0,0.26620431]
[1749477191886,1.11816671,107120.0,107110.0,0.26620431]
[1749477192284,0.92141854,107120.0,107110.0,0.26620431]
[1749477192595,1.52339999,107120.0,107110.0,0.26620431]
[1749477192893,1.67196671,107120.0,107110.0,0.26620431]
[1749477193190,1.82656671,107120.0,107110.0,0.26620431]
[1749477193397,1.62977854,107120.0,107110.0,0.26620431]
[1749477193582,1.82652671,107120.0,107110.0,0.26620431]
[1749477193978,1.27276671,107120.0,107110.0,0.45282031]
[1749477194184,1.50586038,107120.0,107110.0,0.45282031]
[1749477194484,1.46546038,107120.0,107110.0,0.59862031]
[1749477194683,1.46586038,107120.0,107110.0,0.61266547]
[1749477194894,1.46586038,107120.0,107110.0,0.61266545]
[1749477195087,1.46586038,107120.0,107110.0,0.42604945]
[1749477195583,1.02086038,107120.0,107110.0,0.61466548]
[1749477195785,1.31126038,107120.0,107110.0,0.61566547]
[1749477196090,1.16566038,107120.0,107110.0,0.61566543]
[1749477196391,0.80486038,107120.0,107110.0,1.15916848]
[1749477196589,0.80486038,107120.0,107110.0,0.79836848]
[1749477196786,1.16566038,107120.0,107110.0,0.61566428]
[1749477196988,1.16566038,107120.0,107110.0,0.41500431]
[1749477197187,1.50670855,107120.0,107110.0,0.28324879]
[1749477197592,1.50670855,107120.0,107110.0,0.283249]
[1749477197896,1.50670855,107120.0,107110.0,0.26920431]
[1749477198093,1.50670855,107120.0,107110.0,0.28324905]
[1749477198393,1.61546855,107120.0,107110.0,0.28324935]
[1749477198586,1.61546855,107120.0,107110.0,0.28325007]
[1749477198982,1.61546855,107120.0,107110.0,0.26920431]
[1749477199195,1.4674593,107120.0,107110.0,0.26920431]
[1749477199495,1.41872038,107120.0,107110.0,0.26920431]
[1749477199700,1.41872038,107120.0,107110.0,0.26820431]
[1749477200085,1.41872038,107120.0,107110.0,0.26620431]
[1749477200488,1.41872038,107120.0,107110.0,0.26720431]
[1749477201597,1.37872038,107120.0,107110.0,0.26720431]
[1749477201889,1.73006855,107120.0,107110.0,0.26720431]
[1749477202597,1.77880955,107120.0,107110.0,0.1947933]
[1749477202789,1.77880955,107120.0,107110.0,0.1937933]
[1749477204396,1.77879951,107120.0,107110.0,0.1937933]
[1749477205595,1.77879951,107120.0,107110.0,0.1877933]
[1749477206593,1.77879951,107120.0,107110.0,5e-08]
[1749477206794,1.87215951,107120.0,107110.0,5e-08]
[1749477207695,1.87215951,107120.0,107110.0,0.01275378]
[1749477207997,0.1866509,107090.0,107080.0,0.209861]
[1749477208298,0.9837336,107090.0,107080.0,0.20886543]
[1749477208491,1.1330336,107090.0,107080.0,0.20886543]
[1749477208690,1.0930336,107090.0,107080.0,0.30224919]
[1749477208895,1.0930336,107090.0,107080.0,0.30235364]
[1749477209101,1.0930336,107090.0,107080.0,0.50235364]
[1749477209292,1.07787227,107090.0,107080.0,0.50635364]
[1749477210198,1.07787227,107090.0,107080.0,0.51035364]
[1749477210593,1.07787227,107090.0,107080.0,0.51075364]
[1749477211604,1.07787227,107090.0,107080.0,0.37538821]
[1749477212898,1.27471528,107090.0,107080.0,0.37538821]
[1749477213599,1.27471528,107090.0,107080.0,0.37498821]
[1749477213798,1.27471528,107090.0,107080.0,0.37538821]
[1749477214894,1.27471528,107090.0,107080.0,0.37498821]
[1749477215298,1.27006276,107090.0,107080.0,0.37538821]
[1749477215596,2.84736276,107090.0,107080.0,0.37538821]
[1749477215906,2.36248276,107090.0,107080.0,0.30148821]
[1749477216101,2.91612276,107090.0,107080.0,0.30148821]
[1749477216807,2.91612276,107090.0,107080.0,0.30088821]
[1749477217197,2.92106086,107090.0,107080.0,0.30088821]
[1749477217498,2.92106086,107090.0,107080.0,0.29948821]
[1749477217704,2.92106086,107090.0,107080.0,0.29988821]
[1749477218004,1.42106086,107090.0,107080.0,0.29948821]
[1749477218297,1.52531899,107090.0,107080.0,0.29988821]
[1749477218811,1.52531899,107090.0,107080.0,0.31397186]
[1749477219104,1.52531899,107090.0,107080.0,0.29988821]
[1749477219602,0.97167899,107090.0,107080.0,0.31397183]
[1749477219795,0.54804524,107090.0,107080.0,0.50064012]
[1749477220004,0.53328176,107090.0,107080.0,0.71675671]
[1749477220194,0.97812176,107090.0,107080.0,0.71675671]
[1749477220501,0.97772176,107090.0,107080.0,0.71675671]
[1749477220703,0.97812176,107090.0,107080.0,0.73085899]
[1749477220893,0.97812176,107090.0,107080.0,0.73085901]
[1749477221098,0.53328176,107090.0,107080.0,0.71675671]
[1749477221298,1.08676176,107090.0,107080.0,0.71675671]
[1749477221504,0.34663086,107090.0,107080.0,0.92789273]
[1749477221705,0.44533484,107090.0,107080.0,0.92789273]
[1749477221904,0.63158594,107090.0,107080.0,0.92789232]
[1749477222105,1.18941969,107090.0,107080.0,0.29988821]
[1749477222299,1.15186859,107090.0,107060.0,0.16221662]
[1749477222499,0.5474859,107070.0,107060.0,0.0773]
[1749477222695,0.9923259,107070.0,107060.0,0.17068376]
[1749477222900,0.9523259,107070.0,107060.0,0.17108376]
[1749477223197,0.9523259,107070.0,107060.0,0.17118442]
[1749477223507,0.9523259,107070.0,107060.0,0.17718442]
[1749477224302,0.9523259,107070.0,107060.0,0.18218442]
[1749477225104,0.9523259,107070.0,107060.0,0.17718442]
[1749477225305,0.9523259,107070.0,107060.0,0.18218442]
[1749477225515,2.00815966,107070.0,107060.0,0.07352982]
[1749477225804,0.1867557,107030.0,107020.0,0.99569963]
[1749477226109,0.588223,107030.0,107020.0,0.87039145]
[1749477226314,0.588223,107030.0,107020.0,0.87079145]
[1749477226602,0.60154272,107030.0,107020.0,0.60346913]
[1749477226808,0.60154272,107030.0,107020.0,0.17297768]
[1749477226809,0.60054272,107030.0,107020.0,0.17297768]
[1749477227107,0.6696428,107030.0,107020.0,0.17257768]
[1749477227300,1.0304428,107030.0,107020.0,0.17297768]
[1749477227498,1.0304428,107030.0,107020.0,0.17257768]
[1749477227499,1.1030428,107030.0,107020.0,0.17257768]
[1749477227700,1.0304428,107030.0,107020.0,0.63425078]
[1749477227901,1.0304428,107030.0,107020.0,0.45447768]
[1749477228200,0.6696428,107030.0,107020.0,0.45447768]
[1749477228412,0.66054133,107030.0,107020.0,0.46007768]
[1749477228594,1.02134133,107030.0,107020.0,0.46047768]
[1749477228996,1.02134133,107030.0,107020.0,0.45447768]
[1749477229207,0.57650133,107030.0,107020.0,0.45647768]
[1749477229405,0.66054133,107030.0,107020.0,0.64325088]
[1749477229606,0.66054133,107030.0,107020.0,0.83628463]
[1749477229905,0.66094133,107030.0,107020.0,0.83628463]
[1749477230700,1.02174133,107030.0,107020.0,0.29887768]
[1749477230906,1.24774133,107030.0,107020.0,0.29887768]
[1749477232612,1.24774133,107030.0,107020.0,0.29847768]
[1749477232613,1.23257162,107030.0,107020.0,0.29847768]
[1749477232799,1.23257162,107030.0,107020.0,0.29887768]
[1749477233510,1.34085162,107030.0,107020.0,0.29847768]
[1749477233703,1.34085162,107030.0,107020.0,0.51043918]
[1749477233704,1.34285162,107030.0,107020.0,0.51043918]
[1749477234305,1.34285162,107030.0,107020.0,0.5382598]
[1749477234506,1.32161343,107030.0,107020.0,0.51043918]
[1749477234714,0.25359343,107030.0,107020.0,0.7250326]
[1749477234912,1.24571343,107030.0,107020.0,0.71048515]
[1749477235110,1.24571343,107030.0,107020.0,0.78470294]
[1749477235306,0.88491343,107030.0,107020.0,0.78470295]
[1749477235510,1.24571343,107030.0,107020.0,0.78345938]
[1749477235715,0.69219343,107030.0,107020.0,0.58343918]
[1749477235908,1.13707343,107030.0,107020.0,0.58343918]
[1749477236101,1.12587126,107030.0,107020.0,0.61127821]
[1749477236307,1.12587126,107030.0,107020.0,0.58343918]
[1749477236510,1.12587126,107030.0,107020.0,0.59678708]
[1749477236709,1.12587126,107030.0,107020.0,0.78470317]
[1749477236905,0.60319126,107030.0,107020.0,0.78470317]
[1749477237109,1.04807126,107030.0,107020.0,0.79789153]
[1749477237312,1.04807126,107030.0,107020.0,0.78470316]
[1749477237513,1.12167126,107030.0,107020.0,0.77021198]
[1749477237713,1.12167126,107030.0,107020.0,0.79789139]
[1749477237912,1.27627126,107030.0,107020.0,0.78468526]
[1749477238112,1.12167126,107030.0,107020.0,0.78468526]
[1749477238315,1.11967126,107030.0,107020.0,0.51291255]
[1749477238517,1.04006709,107030.0,107020.0,0.49848854]
[1749477238816,1.22882279,107030.0,107020.0,0.71168549]
[1749477239016,1.22882279,107030.0,107020.0,0.71042135]
[1749477239215,1.22882279,107030.0,107020.0,0.72489481]
[1749477239414,1.22882279,107030.0,107020.0,0.71042135]
[1749477239612,1.22882279,107030.0,107020.0,0.72489469]
[1749477239819,1.30332279,107030.0,107020.0,0.5236485]
[1749477240013,1.41200279,107030.0,107020.0,0.69721198]
[1749477240213,1.33750279,107030.0,107020.0,0.78398544]
[1749477240415,1.33750279,107030.0,107020.0,0.79719556]
[1749477240615,0.78394279,107030.0,107020.0,0.79719553]
[1749477240913,1.22882279,107030.0,107020.0,0.79719553]
[1749477241108,1.22882279,107030.0,107020.0,0.78272119]
[1749477241326,1.22882279,107030.0,107020.0,0.79721103]
[1749477241620,1.22882279,107030.0,107020.0,0.71043679]
[1749477241813,1.30340682,107030.0,107020.0,0.52066389]
[1749477242019,1.29733891,107030.0,107020.0,0.72231192]
[1749477242216,1.29733891,107030.0,107020.0,0.53553898]
[1749477242418,1.29733891,107030.0,107020.0,0.52231352]
[1749477242614,1.27610121,107030.0,107020.0,0.52231352]
[1749477242814,1.26093143,107030.0,107020.0,0.52231352]
[1749477243021,1.45796518,107030.0,107020.0,0.53355277]
[1749477243215,1.45796518,107030.0,107020.0,0.50583918]
[1749477243416,1.25893143,107030.0,107020.0,0.32124765]
[1749477243716,1.45796518,107030.0,107020.0,0.32127455]
[1749477243916,1.45796518,107030.0,107020.0,0.32128449]
[1749477244118,1.45796518,107030.0,107020.0,0.32128823]
[1749477244321,1.45796518,107030.0,107020.0,0.53324974]
[1749477244513,1.4720029,107030.0,107020.0,0.52033151]
[1749477244727,1.4720029,107030.0,107020.0,0.52033166]
[1749477244914,1.4740029,107030.0,107020.0,0.53331907]
[1749477245115,1.4740029,107030.0,107020.0,0.5187973]
[1749477245313,1.4740029,107030.0,107020.0,0.5332977]
[1749477245517,1.4740029,107030.0,107020.0,0.53329142]
[1749477246118,1.46279984,107030.0,107020.0,0.50583918]
[1749477246319,1.26576609,107030.0,107020.0,0.53332772]
[1749477246523,1.46279984,107030.0,107020.0,0.50543918]
[1749477246725,1.31357933,107030.0,107020.0,0.53347542]
[1749477246926,2.96279984,107030.0,107020.0,0.53304796]
[1749477247120,2.96279984,107030.0,107020.0,0.50583918]
[1749477247320,2.96279984,107030.0,107020.0,0.52042766]
[1749477247522,3.01060243,107030.0,107020.0,0.52042767]
[1749477247715,3.01060243,107030.0,107020.0,0.53357579]
[1749477247921,3.01060243,107030.0,107020.0,0.5189948]
[1749477248117,3.01060243,107030.0,107020.0,0.52948472]
[1749477248320,3.01060243,107030.0,107020.0,0.30397183]
[1749477248321,3.00860243,107030.0,107020.0,0.30397183]
[1749477248527,2.81156868,107030.0,107020.0,0.31712348]
[1749477248833,3.00149913,107030.0,107020.0,0.50134471]
[1749477249029,2.80446538,107030.0,107020.0,0.51593352]
[1749477249332,2.80446538,107030.0,107020.0,0.51591264]
[1749477249630,3.09493913,107030.0,107020.0,0.50134471]
[1749477250033,3.09493913,107030.0,107020.0,0.52913093]
[1749477250324,3.09493913,107030.0,107020.0,0.52913153]
[1749477250529,2.89790538,107030.0,107020.0,0.51455073]
[1749477250726,3.03593218,107030.0,107020.0,0.37796732]
[1749477250933,2.83389843,107030.0,107020.0,0.48598634]
[1749477251131,2.83389843,107030.0,107020.0,0.49918947]
[1749477251332,3.03093218,107030.0,107020.0,0.48466894]
[1749477251528,3.03093218,107030.0,107020.0,0.49965006]
[1749477251723,3.03093218,107030.0,107020.0,0.48638634]
[1749477252027,0.1867721,107020.0,107010.0,0.00013961]
[1749477252228,0.86716422,107020.0,107010.0,0.00013961]
[1749477252424,0.86716422,107020.0,107010.0,0.09357572]
[1749477252627,0.67013047,107020.0,107010.0,0.09357572]
[1749477252824,0.85199155,107020.0,107010.0,0.09357572]
[1749477253032,0.85199155,107020.0,107010.0,0.09397572]
[1749477253525,0.6549578,107020.0,107010.0,0.09357572]
[1749477253722,1.44431155,107020.0,107010.0,0.09397572]
[1749477254022,1.2472378,107020.0,107010.0,0.29397572]
[1749477254220,1.2471178,107020.0,107010.0,0.29397572]
[1749477254426,1.2471178,107020.0,107010.0,0.37077572]
[1749477254630,1.2471178,107020.0,107010.0,0.29397572]
[1749477254826,1.49391983,107020.0,107010.0,0.29397572]
[1749477255022,1.49391983,107020.0,107010.0,0.29357572]
[1749477255227,1.49391983,107020.0,107010.0,0.29397572]
[1749477255937,1.29728608,107020.0,107010.0,0.29397572]
[1749477256835,1.29828608,107020.0,107010.0,0.29397572]
[1749477257231,1.49060888,107020.0,107010.0,0.29397572]
[1749477257439,1.49012888,107020.0,107010.0,0.29397572]
[1749477257835,1.01840888,107020.0,107010.0,0.29397572]
[1749477258134,1.46788888,107020.0,107010.0,0.29397572]
[1749477258735,1.46752888,107020.0,107010.0,0.29397572]
[1749477258927,1.4580254,107020.0,107010.0,0.29397572]
[1749477259134,1.4584254,107020.0,107010.0,0.29397572]
[1749477259448,1.4581854,107020.0,107010.0,0.29397572]
[1749477259732,1.41041712,107020.0,107010.0,0.29397572]
[1749477259936,1.45825443,107020.0,107010.0,0.29397572]
[1749477260131,0.86741443,107020.0,107010.0,0.29397572]
[1749477260332,1.45789443,107020.0,107010.0,0.29397572]
[1749477260544,1.45789443,107020.0,107010.0,0.29357572]
[1749477260841,0.67509163,107020.0,107010.0,0.29397572]
[1749477261138,0.67469163,107020.0,107010.0,0.29397572]
[1749477261335,1.45721443,107020.0,107010.0,0.29397572]
[1749477261535,1.45721443,107020.0,107010.0,0.29357572]
[1749477261735,1.45721443,107020.0,107010.0,0.29397572]
[1749477261736,0.86741443,107020.0,107010.0,0.29397572]
[1749477261937,1.45741443,107020.0,107010.0,0.29397572]
[1749477262835,1.26509163,107020.0,107010.0,0.29397572]
[1749477263037,1.45741443,107020.0,107010.0,0.29397572]
[1749477264040,1.44224125,107020.0,107010.0,0.30684959]
[1749477264237,1.44224125,107020.0,107010.0,0.30683253]
[1749477264747,1.44224125,107020.0,107010.0,0.29397572]
[1749477266631,0.85224125,107020.0,107010.0,0.29397572]
[1749477266836,0.58841845,107020.0,107010.0,0.29397572]
[1749477267030,1.2115525,107020.0,107010.0,0.36807572]
[1749477267230,0.6232725,107020.0,107010.0,0.51657572]
[1749477267443,1.2115125,107020.0,107010.0,0.51657572]
[1749477267842,1.2119125,107020.0,107010.0,0.51657572]
[1749477268041,0.6232725,107020.0,107010.0,0.51657572]
[1749477268340,1.2116325,107020.0,107010.0,0.51657572]
[1749477268642,1.2115125,107020.0,107010.0,0.51657572]
[1749477268837,0.6232725,107020.0,107010.0,0.70336562]
[1749477269036,1.2113125,107020.0,107010.0,0.51657572]
[1749477269240,1.2109125,107020.0,107010.0,0.51657572]
[1749477269440,1.2113125,107020.0,107010.0,0.51657572]
[1749477270645,1.2107925,107020.0,107010.0,0.51657572]
[1749477271243,0.6232725,107020.0,107010.0,0.70336562]
[1749477271444,1.2106325,107020.0,107010.0,0.51657572]
[1749477271835,0.5509725,107020.0,107010.0,0.89568842]
[1749477272037,0.3642,107020.0,107010.0,0.89568842]
[1749477272237,0.6573724,107020.0,107010.0,0.89568842]
[1749477272438,1.0177724,107020.0,107010.0,0.89568842]
[1749477272633,0.6573724,107020.0,107010.0,0.89568842]
[1749477272843,1.0181724,107020.0,107010.0,0.89568842]
[1749477273244,1.0181724,107020.0,107010.0,0.70336562]
[1749477273439,1.0181724,107020.0,107010.0,0.89568842]
[1749477274047,1.0181724,107020.0,107010.0,0.70336562]
[1749477275040,1.0520724,107020.0,107010.0,0.70336562]
[1749477275942,1.0500724,107020.0,107010.0,0.70336562]
[1749477276143,1.0481924,107020.0,107010.0,0.44147572]
[1749477276353,1.0481924,107020.0,107010.0,0.52037572]
[1749477276539,1.0481924,107020.0,107010.0,0.51997572]
[1749477276744,1.0481924,107020.0,107010.0,0.52037572]
[1749477276947,1.0481924,107020.0,107010.0,0.51997572]
[1749477277147,1.0481924,107020.0,107010.0,0.52037572]
[1749477277348,1.0481924,107020.0,107010.0,0.70716562]
[1749477279048,0.5818724,107020.0,107010.0,0.70716562]
[1749477279249,1.0473524,107020.0,107010.0,0.70716562]
[1749477279451,1.0469524,107020.0,107010.0,0.70716562]
[1749477279754,1.0473524,107020.0,107010.0,0.70716562]
[1749477281052,1.2396752,107020.0,107010.0,0.62826562]
[1749477281255,1.3144752,107020.0,107010.0,0.29397572]
[1749477281446,1.3144752,107020.0,107010.0,0.29357572]
[1749477281447,1.4612752,107020.0,107010.0,0.29357572]
[1749477281646,1.4612752,107020.0,107010.0,0.29397572]
[1749477282352,1.4612752,107020.0,107010.0,0.48076562]
[1749477282953,1.4612752,107020.0,107010.0,0.29397572]
[1749477283355,1.4612752,107020.0,107010.0,0.48076562]
[1749477285752,1.4612752,107020.0,107010.0,0.29397572]
[1749477285957,1.4612752,107020.0,107010.0,0.48076562]
[1749477286458,1.4612752,107020.0,107010.0,0.29397572]
[1749477287061,1.4612752,107020.0,107010.0,0.48076562]
[1749477287564,1.4612752,107020.0,107010.0,0.29397572]
[1749477287862,1.44610321,107020.0,107010.0,0.29397572]
[1749477291763,1.44610321,107020.0,107010.0,0.48076562]
[1749477291962,1.44610321,107020.0,107010.0,0.29397572]
[1749477292464,1.25378041,107020.0,107010.0,0.48076562]
[1749477292657,0.64150041,107020.0,107010.0,0.48076562]
[1749477292964,1.22298041,107020.0,107010.0,0.63196562]
[1749477293157,1.41570321,107020.0,107010.0,0.44517572]
[1749477293362,1.49000321,107020.0,107010.0,0.44517572]
[1749477293870,1.49000321,107020.0,107010.0,0.36797572]
[1749477294468,1.29768041,107020.0,107010.0,0.36797572]
[1749477294671,1.49000321,107020.0,107010.0,0.36797572]
[1749477294965,1.49000321,107020.0,107010.0,0.48076562]
[1749477296264,0.7769525,107020.0,107010.0,0.67308842]
[1749477296570,0.5814725,107020.0,107010.0,1.0344966]
[1749477296768,1.0425525,107020.0,107010.0,1.0344966]
[1749477296973,0.5818725,107020.0,107010.0,1.0344966]
[1749477297269,1.0423525,107020.0,107010.0,0.83128842]
[1749477299267,1.0271816,107020.0,107010.0,0.63896562]
[1749477299461,1.1039816,107020.0,107010.0,0.63896562]
[1749477300160,1.1039816,107020.0,107010.0,0.37347572]
[1749477300361,1.1814816,107020.0,107010.0,0.48076572]
[1749477300968,1.1814816,107020.0,107010.0,0.6835739]
[1749477301665,1.3738044,107020.0,107010.0,0.4971839]
[1749477302170,1.3738044,107020.0,107010.0,0.29397572]
[1749477303569,1.1814816,107020.0,107010.0,0.48076572]
[1749477303769,1.3738044,107020.0,107010.0,0.48076572]
[1749477303970,0.6435016,107020.0,107010.0,0.48076572]
[1749477304165,0.4567291,107020.0,107010.0,0.67308852]
[1749477304367,0.6435016,107020.0,107010.0,0.74988852]
[1749477304563,1.1030216,107020.0,107010.0,0.82938852]
[1749477304871,1.1030216,107020.0,107010.0,0.63706572]
[1749477305368,1.0263416,107020.0,107010.0,0.63706572]
[1749477305564,1.0259416,107020.0,107010.0,0.63706572]
[1749477305765,1.0263416,107020.0,107010.0,0.8402739]
[1749477306371,1.2186644,107020.0,107010.0,0.6839739]
[1749477306568,1.3704644,107020.0,107010.0,0.6839739]
[1749477306975,1.3704644,107020.0,107010.0,0.50840572]
[1749477307274,1.3704644,107020.0,107010.0,0.50880572]
[1749477307871,1.3704644,107020.0,107010.0,0.32201572]
[1749477308470,1.3704644,107020.0,107010.0,0.32161572]
[1749477308671,1.3704644,107020.0,107010.0,0.32201572]
[1749477308974,1.3704644,107020.0,107010.0,0.31267329]
[1749477309175,1.3704644,107020.0,107010.0,0.31307329]
[1749477309472,1.3704644,107020.0,107010.0,0.24833329]
[1749477309473,3.0254644,107020.0,107010.0,0.24833329]
[1749477309778,3.0254644,107020.0,106970.0,0.78603124]
[1749477309779,0.1868424,106980.0,106970.0,0.78603124]
[1749477309972,1.09916274,106980.0,106970.0,0.47719104]
[1749477310168,1.09916274,106980.0,106970.0,0.1872598]
[1749477310368,1.17626274,106980.0,106970.0,0.28070464]
[1749477310568,1.01554,106980.0,106970.0,0.28070464]
[1749477310769,1.11617667,106980.0,106970.0,0.57613184]
[1749477311079,1.11617667,106980.0,106970.0,0.45031256]
[1749477311272,1.38599947,106980.0,106970.0,0.12954922]
[1749477311575,1.38599947,106980.0,106970.0,0.12918614]
[1749477311772,1.38599947,106980.0,106970.0,0.11675276]
[1749477311972,1.38599947,106980.0,106950.0,0.1868904]
[1749477311973,0.0467187,106970.0,106950.0,0.1868904]
[1749477312174,1.2037373,106960.0,106950.0,0.0743]
[1749477312369,1.7568601,106960.0,106950.0,0.09347978]
[1749477312673,1.58849265,106960.0,106950.0,0.09387978]
[1749477312878,1.66228135,106960.0,106950.0,0.09387978]
[1749477313074,1.66228135,106960.0,106950.0,0.28077458]
[1749477313271,2.06418513,106960.0,106950.0,0.09387978]
[1749477313476,2.06418513,106960.0,106950.0,0.09347978]
[1749477313477,1.84853127,106960.0,106950.0,0.09347978]
[1749477313674,1.65628847,106960.0,106950.0,0.09787978]
[1749477314177,1.65668847,106960.0,106950.0,0.29787978]
[1749477314374,1.84901127,106960.0,106950.0,0.29887978]
[1749477314676,0.35724847,106960.0,106950.0,0.67809738]
[1749477314876,0.96332405,106960.0,106950.0,0.75229738]
[1749477315076,1.03609572,106960.0,106950.0,0.83209738]
[1749477315271,0.09761572,106960.0,106950.0,1.29199223]
[1749477315477,0.55885572,106960.0,106950.0,0.93119223]
[1749477315669,0.55885572,106960.0,106950.0,0.73886943]
[1749477315670,0.55925572,106960.0,106950.0,0.73886943]
[1749477315875,0.55925572,106960.0,106950.0,0.93119223]
[1749477316272,1.10693302,106960.0,106950.0,0.93119223]
[1749477316482,1.10693302,106960.0,106950.0,0.73886943]
[1749477316684,1.10693302,106960.0,106950.0,0.39087463]
[1749477316982,1.45525582,106960.0,106950.0,0.39047463]
[1749477317185,1.26293302,106960.0,106950.0,0.39087463]
[1749477317377,1.26293302,106960.0,106950.0,0.31667463]
[1749477318281,1.46037401,106960.0,106950.0,0.31667463]
[1749477318578,1.46037401,106960.0,106950.0,0.31627463]
[1749477318783,1.46037401,106960.0,106950.0,0.31667463]
[1749477319090,2.96037401,106960.0,106950.0,0.22801288]
[1749477319274,2.76293302,106960.0,106950.0,0.20921803]
[1749477319476,2.76293302,106960.0,106950.0,0.20961803]
[1749477319775,2.96037401,106960.0,106950.0,0.16820496]
[1749477319981,2.96037401,106960.0,106950.0,0.12240372]
[1749477320174,2.76293302,106960.0,106950.0,0.12200372]
[1749477320371,2.96037401,106960.0,106950.0,0.12240372]
[1749477320779,2.95126404,106960.0,106950.0,0.00870616]
[1749477320970,2.75382305,106960.0,106950.0,0.00870616]
[1749477321582,0.1868948,106950.0,106940.0,0.00019205]
[1749477321882,0.9032348,106950.0,106940.0,0.00019205]
[1749477322180,0.88805136,106950.0,106940.0,0.09368931]
[1749477322384,1.36457136,106950.0,106940.0,0.09368931]
[1749477322685,1.56241235,106950.0,106940.0,0.09368931]
[1749477322882,1.56241235,106950.0,106940.0,0.09408931]
[1749477323184,1.56241235,106950.0,106940.0,0.06891683]
[1749477323385,1.56241235,106950.0,106940.0,0.07851567]
[1749477323581,0.0467324,106930.0,106910.0,0.13756409]
[1749477323778,1.2180272,106920.0,106910.0,0.23756409]
[1749477323979,1.2988272,106920.0,106910.0,0.19413848]
[1749477324284,1.57176819,106920.0,106910.0,0.2261409]
[1749477324586,1.3743272,106920.0,106910.0,0.2257409]
[1749477324786,1.3743272,106920.0,106910.0,0.22633639]
[1749477325087,1.3743272,106920.0,106910.0,0.22998109]
[1749477325281,1.3743272,106920.0,106910.0,0.2168375]
[1749477325476,1.57176819,106920.0,106910.0,0.2128375]
[1749477325681,1.57176819,106920.0,106910.0,0.22736812]
[1749477326185,1.3743272,106920.0,106910.0,0.2138375]
[1749477326385,1.3743272,106920.0,106910.0,0.22762357]
[1749477326579,1.3743272,106920.0,106910.0,0.2138375]
[1749477326781,0.7758472,106920.0,106910.0,0.22762149]
[1749477326985,0.7758472,106920.0,106900.0,0.12561673]
[1749477326986,0.1869646,106910.0,106900.0,0.12561673]
[1749477327185,0.5457646,106910.0,106900.0,0.12561673]
[1749477327688,0.5457646,106910.0,106900.0,0.21914897]
[1749477327689,1.1577246,106910.0,106900.0,0.21914897]
[1749477328077,1.1581246,106910.0,106900.0,0.21925972]
[1749477328277,1.1581246,106910.0,106900.0,0.22025972]
[1749477328494,1.34949082,106910.0,106900.0,0.22025972]
[1749477328681,1.30254983,106910.0,106900.0,0.09464299]
[1749477329094,1.30254983,106910.0,106900.0,0.09604299]
[1749477329591,1.15480983,106910.0,106900.0,0.09604299]
[1749477329779,1.15480983,106910.0,106900.0,0.17834299]
[1749477330088,1.15440983,106910.0,106900.0,0.37834299]
[1749477330281,1.15480983,106910.0,106900.0,0.45794299]
[1749477330486,1.23010983,106910.0,106900.0,0.45794299]
[1749477330680,1.22099746,106910.0,106900.0,0.45794299]
[1749477331491,0.64017746,106910.0,106900.0,0.45794299]
[1749477331691,1.26445746,106910.0,106900.0,0.45794299]
[1749477333694,1.2075046,106910.0,106900.0,0.64492509]
[1749477334096,0.5816646,106910.0,106900.0,0.45794299]
[1749477334292,1.2076246,106910.0,106900.0,0.45794299]
[1749477334493,1.40506559,106910.0,106900.0,0.29604299]
[1749477334799,1.55656559,106910.0,106900.0,0.29604299]
[1749477334995,1.55665388,106910.0,106900.0,0.29564299]
[1749477335294,1.35921289,106910.0,106900.0,0.29604299]
[1749477335493,1.55665388,106910.0,106900.0,0.29564299]
[1749477335691,1.55665388,106910.0,106900.0,0.29604299]
[1749477335890,1.55665388,106910.0,106900.0,0.31024905]
[1749477336086,1.35921289,106910.0,106900.0,0.29604299]
[1749477336289,0.1870346,106870.0,106860.0,0.02806]
[1749477336491,0.1870696,106850.0,106840.0,0.25]
[1749477336792,1.01412166,106850.0,106840.0,0.44744099]
[1749477337294,1.01412166,106850.0,106840.0,0.67355451]
[1749477337494,1.01412166,106850.0,106840.0,0.47622931]
[1749477337696,1.01412166,106850.0,106840.0,0.37622931]
[1749477337884,1.01412166,106850.0,106840.0,0.37662931]
[1749477338190,1.57236265,106850.0,106840.0,0.44410931]
[1749477338389,1.37501419,106850.0,106840.0,0.44370931]
[1749477338594,0.72169253,106850.0,106840.0,0.63279621]
[1749477338792,1.29138348,106850.0,106840.0,0.9242292]
[1749477338993,1.67629387,106850.0,106840.0,0.31036173]
[1749477339192,1.6580632,106850.0,106840.0,0.31047722]
[1749477339490,1.85550419,106850.0,106840.0,0.31007722]
[1749477339695,1.6580632,106850.0,106840.0,0.31066144]
[1749477339887,1.6580632,106850.0,106840.0,0.29660931]
[1749477340085,1.85550419,106850.0,106840.0,0.29660931]
[1749477340291,1.6580632,106850.0,106840.0,0.29660931]
[1749477340594,1.6624232,106850.0,106840.0,0.31036284]
[1749477340896,2.5003051,106850.0,106840.0,0.29660931]
[1749477341090,3.19602609,106850.0,106840.0,0.29660931]
[1749477341292,3.19602609,106850.0,106840.0,0.31073589]
[1749477341488,3.15190638,106850.0,106840.0,0.39327067]
[1749477341693,3.30770638,106850.0,106840.0,0.39327648]
[1749477341893,3.30770638,106850.0,106840.0,0.37890931]
[1749477342089,3.26770638,106850.0,106840.0,0.31097649]
[1749477342296,3.07026539,106850.0,106840.0,0.29660931]
[1749477342492,3.26770638,106850.0,106840.0,0.29660931]
[1749477342898,3.25554894,106850.0,106840.0,0.31054213]
[1749477343196,3.25554894,106850.0,106840.0,0.29660931]
[1749477343598,3.05202899,106850.0,106840.0,0.31099321]
[1749477343786,3.29692227,106850.0,106840.0,0.29660931]
[1749477344293,3.29692227,106850.0,106840.0,0.31098449]
[1749477344497,3.24946998,106850.0,106840.0,0.30998389]
[1749477344795,3.24946998,106850.0,106840.0,0.30819704]
[1749477344796,3.05402899,106850.0,106840.0,0.30819704]
[1749477345001,3.25146998,106850.0,106840.0,0.30779902]
[1749477345201,3.25146998,106850.0,106840.0,0.29420931]
[1749477345402,3.25146998,106850.0,106840.0,0.30782749]
[1749477345599,3.05402899,106850.0,106840.0,0.29420931]
[1749477345798,3.05402899,106850.0,106840.0,0.30811606]
[1749477346099,1.55402899,106850.0,106840.0,0.30790552]
[1749477346302,1.75146998,106850.0,106840.0,0.30790552]
[1749477346598,1.75146998,106850.0,106840.0,0.30762272]
[1749477346599,1.27045258,106850.0,106840.0,0.30762272]
[1749477346903,1.81853605,106850.0,106840.0,0.30769096]
[1749477347102,1.81853605,106850.0,106840.0,0.29460931]
[1749477347403,1.62109555,106850.0,106840.0,0.29460931]
[1749477347598,1.57373159,106850.0,106840.0,0.30739361]
[1749477347802,1.75390998,106850.0,106840.0,0.30739361]
[1749477347999,1.25318998,106850.0,106840.0,0.30739361]
[1749477348298,1.75470998,106850.0,106840.0,0.30739353]
[1749477348504,1.09778998,106850.0,106840.0,0.30739353]
[1749477348703,1.59910998,106850.0,106840.0,0.46791574]
[1749477348893,1.59910998,106850.0,106840.0,0.46598384]
[1749477348894,1.59870998,106850.0,106840.0,0.46598384]
[1749477349200,1.36166899,106850.0,106840.0,0.46598298]
[1749477349400,1.55910998,106850.0,106840.0,0.46598122]